Cogmind - Beta 13 @@@ ROGUE MODE // 2024.04.26 @ 22:01:18 Player: tartine Result: Self-destructed Performance ------------- Evolutions (2) 1000 Regions Visited (4) 800 Robots Destroyed (47) 235 Value Destroyed (1157) 1157 Prototype IDs (1) 20 Alien Tech Used (0) 0 Bonus (0) 0 TOTAL SCORE: 3212 Bonus ------- None Cogmind --------- Core Integrity 486/550 Matter 300/300 Energy 193/275 System Corruption 4% Temperature Hot (267) Movement Core (800) Ox15 Location -8/Materials Parts ------- > --- POWER (1) -------- Deuterium Engine > --- PROPULSION (4) --- (None) > --- UTILITY (3) ------ Improved Heat Sink Large Storage Unit Medium Armor Plating > --- WEAPON (3) ------- Beam Rifle Heavy Laser Particle Cannon > --- INVENTORY (15) --- Improved Heat Sink Improved Heat Sink Signal Interpreter Core Shielding Light Armor Plating Hardened Light Armor Plating Reactive Plating Small Laser Small Laser Assault Rifle Light Assault Rifle Improved Grenade Launcher Mining Laser Peak State ------------ > --- POWER ------------ Heavy Ion Engine > --- PROPULSION ------- Wheel Wheel Wheel > --- UTILITY ---------- Improved Heat Sink Large Storage Unit Hacking Suite > --- WEAPON ----------- Heavy Laser Particle Cannon Light Cannon > --- INVENTORY -------- Improved Ion Engine Deuterium Engine Improved Heat Sink Improved Heat Sink Signal Interpreter Light Armor Plating Medium Armor Plating Small Laser Small Laser Particle Cannon Assault Rifle Light Assault Rifle Mining Laser [Rating: 22] Favorites ----------- Power Heavy Ion Engine Engine Heavy Ion Engine Propulsion Wheel Treads Light Treads Wheel Wheel Utility Large Storage Unit Device Improved Heat Sink Storage Large Storage Unit Hackware Hacking Suite Protection Medium Armor Plating Weapon Particle Cannon Energy Gun Heavy Laser Energy Cannon Particle Cannon Ballistic Gun Light Assault Rifle Ballistic Cannon Light Cannon Build | -11 -10 -10 -9 -8 ------- Run | Yrd Mat Min Mat Mat Slots Evolved 4 | . . . 2 2 Power . | . . . . . Propulsion 2 | . . . 1 1 Utility 1 | . . . 1 . Weapon 1 | . . . . 1 Parts Attached 46 | 6 1 . 26 13 Power 6 | 1 . . 3 2 Engine 6 | 1 . . 3 2 Core . | . . . . . Reactor . | . . . . . Propulsion 17 | 2 . . 10 5 Treads 2 | . . . 2 . Leg . | . . . . . Wheel 15 | 2 . . 8 5 Hover . | . . . . . Flight . | . . . . . Utility 11 | 1 1 . 7 2 Device 3 | . . . 2 1 Storage 3 | 1 1 . 1 . Processor . | . . . . . Hackware 1 | . . . 1 . Protection 4 | . . . 3 1 Artifact . | . . . . . Weapon 12 | 2 . . 6 4 Energy Gun 4 | 1 . . 1 2 Energy Cannon 3 | . . . 2 1 Ballistic Gun 4 | 1 . . 3 . Ballistic Cannon 1 | . . . . 1 Launcher . | . . . . . Special Weapon . | . . . . . Impact Weapon . | . . . . . Slashing Weapon . | . . . . . Piercing Weapon . | . . . . . Special Melee Weapon . | . . . . . Unidentified Prototypes 1 | . . . 1 . Parts Lost 20 | . . . 9 11 Power 1 | . . . . 1 Propulsion 14 | . . . 7 7 Utility 3 | . . . 2 1 Weapon 2 | . . . . 2 Highest Loss Streak 3 | . . . 3 3 To Critical Strikes . | . . . . . Average Slot Usage (%) 83 | . 85 85 86 78 Engine 10 | . 14 14 10 8 Wheel 24 | . 28 28 27 19 Device 6 | . . . 6 9 Storage 10 | . 14 14 11 9 Hackware 5 | . . . 7 4 Protection 1 | . . . . 1 Energy Gun 5 | . 14 14 2 8 Energy Cannon 10 | . . . 11 10 Ballistic Gun 5 | . 14 14 7 . Ballistic Cannon 2 | . . . . 6 Naked Turns . | . . . . . Heaviest Build 87 | 12 87 87 87 48 Greatest Support 40 | 20 20 20 40 40 Greatest Overweight (x) 12 | . 4 4 12 4 Average Overweight (x) 1 | . 3 4 . 1 Largest Inventory Capacity 25 | 8 25 25 25 15 Average Capacity 15 | 7 23 25 15 15 Most Carried 15 | 5 6 6 15 15 Average Carried 9 | 2 5 6 8 13 Final Capacity 25 | 8 25 25 15 15 Final Carried 15 | 5 6 6 15 13 Class Distribution -------------------- 34% | Scavenger-Mutant 33% | Mutant 16% | Gunner 9% | Scavenger-Gunner 6% | Tank Dominant Class ---------------- Mutant | -10/Materials Mutant | -10/Mines Scavenger-Mutant | -9/Materials Gunner | -8/Materials Resources | -11 -10 -10 -9 -8 ----------- Run | Yrd Mat Min Mat Mat Matter Collected 966 | 251 18 . 435 262 Remotely . | . . . . . Salvage Created 1717 | 31 . . 860 826 Parts 99 | 8 . . 54 37 Haulers Intercepted . | . . . . . Recyclers Shooed 4 | . . . . 4 Parts Field Recycled . | . . . . . Retrieved Matter . | . . . . . Parts Self-Destructed . | . . . . . Prevented . | . . . . . Kills | -11 -10 -10 -9 -8 ------- Run | Yrd Mat Min Mat Mat Combat Hostiles Destroyed 22 | . . . 12 10 Guns 8 | . . . 6 2 Cannons 14 | . . . 6 8 Classes Destroyed 10 | 1 . . 7 2 Worker 10 | . . . 6 4 Builder 4 | . . . 1 3 Tunneler 4 | 2 . . 2 . Recycler 3 | . . . . 3 Operator 2 | . . . 2 . Watcher 2 | . . . 2 . Grunt 12 | . . . 6 6 Brawler 1 | . . . . 1 Duelist 2 | . . . 1 1 Sentry 7 | . . . 5 2 Best Kill Streak 4 | 1 . . 4 3 Combat Bots Only 4 | . . . 4 2 Max Kills in Single Turn 2 | 1 . . 1 2 Gunslinging . | . . . . . Exploded . | . . . . . Melee . | . . . . . Uniques/NPCs Destroyed . | . . . . . Combat | -11 -10 -10 -9 -8 -------- Run | Yrd Mat Min Mat Mat Hostile Shots Fired 122 | . . . 66 56 Missed 30 | . . . 17 13 Damage Taken 1734 | . . . 937 797 Core 307 | . . . 243 64 Absorbed by Shields . | . . . . . Core Remaining (%) 79 | 100 . 100 39 . Volleys Fired 161 | 9 . . 100 52 Largest 3 | 2 . . 2 3 Hottest 193 | 60 . . 136 193 Shots Fired 366 | 17 . . 199 150 Gun 174 | 17 . . 113 44 Cannon 192 | . . . 86 106 Launcher . | . . . . . Special . | . . . . . Kinetic 135 | 9 . . 87 39 Thermal 231 | 8 . . 112 111 Explosive . | . . . . . Electromagnetic . | . . . . . Robot Hit Streak 18 | 5 . . 18 12 Robot Miss Streak 6 | 2 . . 6 5 Penetration Max . | . . . . . Secondary Targets . | . . . . . Shots Hit Robots 202 | 12 . . 101 89 Core Hits 71 | 3 . . 36 32 Critical Kills . | . . . . . Critical Parts Destroyed . | . . . . . Critical Strikes 1 | . . . . 1 Blast 1 | . . . . 1 Melee Attacks . | . . . . . Impact . | . . . . . Slashing . | . . . . . Piercing . | . . . . . Sneak Attacks . | . . . . . Combat Hostiles . | . . . . . Follow-up Attacks . | . . . . . Damage Inflicted 3383 | 122 . . 1522 1739 Guns 1173 | 122 . . 499 552 Cannons 2210 | . . . 1023 1187 Explosions . | . . . . . Melee . | . . . . . Ramming . | . . . . . Kinetic 780 | 68 . . 381 331 Thermal 2603 | 54 . . 1141 1408 Explosive . | . . . . . Electromagnetic . | . . . . . Impact . | . . . . . Slashing . | . . . . . Piercing . | . . . . . Highest Corruption 4 | . 1 1 . 4 Average Corruption 3 | . 1 1 . 4 Corruption Purged . | . . . . . Corruption Blocked . | . . . . . Effects 6 | . . . . 6 Message Errors 3 | . . . . 3 Matter Fused 1 | . . . . 1 Energy Discharges 1 | . . . . 1 Data Loss (minor) 1 | . . . . 1 Overload Shots . | . . . . . Overflow Damage 6 | . . . 6 . Projectiles 6 | . . . 6 . Explosions . | . . . . . Melee . | . . . . . Knockbacks 2 | . . . . 2 Impact . | . . . . . Kinetic 2 | . . . . 2 Secondary . | . . . . . Self-Inflicted Damage . | . . . . . Shots . | . . . . . Rammed . | . . . . . Targets Rammed . | . . . . . Kicked . | . . . . . Crushed . | . . . . . Highest Temperature 529 | 20 . . 529 348 Average Temperature 106 | 15 . . 99 122 Received Heat Transfer 483 | . . . 195 288 Effects 7 | . . . 4 3 Shutdowns 1 | . . . 1 . Energy Bleed 3 | . . . . 3 Interference 2 | . . . 2 . Matter Decay 1 | . . . 1 . Siege Activations . | . . . . . Robots Corrupted . | . . . . . Combat Hostiles . | . . . . . Parts Fried . | . . . . . Impact Corruptions . | . . . . . Robots Melted . | . . . . . Combat Hostiles . | . . . . . Parts Melted 10 | . . . 5 5 Heat Transferred 4914 | 125 . . 2125 2664 Parts Sabotaged . | . . . . . Parts Stolen . | . . . . . Parts Stripped . | . . . . . Power Chain Reactions . | . . . . . Alert | -11 -10 -10 -9 -8 ------- Run | Yrd Mat Min Mat Mat Peak Influence 323 | 10 21 7 323 233 Initial 91 | . 6 7 2 91 Average 131 | 2 12 7 157 130 Maximum Alert Level 1 | . . . 1 1 Low Security (%) 73 | 100 100 100 61 85 Level 1 26 | . . . 38 14 Level 2 . | . . . . . Level 3 . | . . . . . Level 4 . | . . . . . Level 5 . | . . . . . High Security . | . . . . . Max Security . | . . . . . Squads Dispatched 6 | . . . 2 4 Investigation . | . . . . . Extermination . | . . . . . Reinforcement 3 | . . . 2 1 Assault . | . . . . . Garrison 3 | . . . . 3 Intercept . | . . . . . Searches Triggered . | . . . . . Construction Impeded . | . . . . . Haulers Reinforced . | . . . . . Active Scanning Responses . | . . . . . Cargo Convoy Interrupts . | . . . . . Stealth | -11 -10 -10 -9 -8 --------- Run | Yrd Mat Min Mat Mat Distress Signals 2 | . . . 1 1 Communications Jammed . | . . . . . Distress Signals . | . . . . . Times Spotted 43 | . 1 . 21 21 Peak Tracking Total 5 | . 1 . 5 3 Tactical Retreats 4 | . . . 1 3 Traps | -11 -10 -10 -9 -8 ------- Run | Yrd Mat Min Mat Mat Traps Triggered 1 | . 1 . . . Indirectly . | . . . . . Trap Hack Attempts . | . . . . . Triggered . | . . . . . Disarmed 6 | . . . . 6 Reprogrammed . | . . . . . Reused . | . . . . . Traps Extracted . | . . . . . Installed . | . . . . . Triggered . | . . . . . Machines | -11 -10 -10 -9 -8 ---------- Run | Yrd Mat Min Mat Mat Machines Disabled 7 | . . . 5 2 Max in Single Turn 2 | . . . 2 1 Machines Repaired . | . . . . . Machines Dismantled . | . . . . . Machines Sabotaged . | . . . . . Overloaded Fab Kills . | . . . . . Hacking | -11 -10 -10 -9 -8 --------- Run | Yrd Mat Min Mat Mat Machines Accessed 2 | . . . 1 1 Terminals 2 | . . . 1 1 Fabricators . | . . . . . Repair Stations . | . . . . . Recycling Units . | . . . . . Scanalyzers . | . . . . . Garrison Access . | . . . . . Total Hacks 6 | . . . 3 3 Successful 6 | . . . 3 3 Failed . | . . . . . Catastrophic . | . . . . . Database Lockouts . | . . . . . Manual 1 | . . . . 1 Terminals 6 | . . . 3 3 Fabricators . | . . . . . Repair Stations . | . . . . . Recycling Units . | . . . . . Scanalyzers . | . . . . . Garrison Access . | . . . . . Terminal Hacks 6 | . . . 3 3 Level Access Points 1 | . . . 1 . Emergency Access Points 1 | . . . 1 . Alert Level 1 | . . . 1 . Unreport Threat 1 | . . . . 1 Locate Traps 1 | . . . . 1 Disarm Traps 1 | . . . . 1 Fabricator Hacks . | . . . . . Repair Station Hacks . | . . . . . Recycling Unit Hacks . | . . . . . Scanalyzer . | . . . . . Garrison Access Hacks . | . . . . . Unauthorized Hacks . | . . . . . Terminals . | . . . . . Fabricators . | . . . . . Repair Stations . | . . . . . Recycling Units . | . . . . . Scanalyzers . | . . . . . Garrison Access . | . . . . . Data Cores Recovered . | . . . . . Used . | . . . . . Hacking Detections 1 | . . . . 1 Full Trace Events . | . . . . . Feedback Events . | . . . . . Feedback Blocked . | . . . . . Robot Schematics Acquired . | . . . . . Robots Built . | . . . . . Authchips . | . . . . . Time . | . . . . . Total Robot Build Rating . | . . . . . Part Schematics Acquired . | . . . . . Parts Built . | . . . . . Authchips . | . . . . . Time . | . . . . . Total Part Build Rating . | . . . . . Parts Repaired . | . . . . . Time . | . . . . . Parts Recycled . | . . . . . Recycled Matter . | . . . . . Retrieved Matter . | . . . . . Retrieved Components . | . . . . . Parts Scanalyzed . | . . . . . Part Schematics Acquired . | . . . . . Parts Damaged . | . . . . . Bothacking | -11 -10 -10 -9 -8 ------------ Run | Yrd Mat Min Mat Mat Used RIF Installer . | . . . . . Robots Hacked . | . . . . . Non-combat . | . . . . . Combat . | . . . . . Robot Hacks Applied . | . . . . . Relay Couplers Released . | . . . . . Fabnet Peak Effective % . | . . . . . Robots Rewired . | . . . . . Allies Hacked . | . . . . . Hacks Repelled . | . . . . . Allies | -11 -10 -10 -9 -8 -------- Run | Yrd Mat Min Mat Mat Total Allies . | . . . . . Largest Group . | . . . . . Highest-Rated Group . | . . . . . Highest-Rated Ally . | . . . . . Total Orders . | . . . . . Ally Attacks . | . . . . . Total Damage . | . . . . . Kills . | . . . . . Allies Corrupted . | . . . . . Allies Melted . | . . . . . Intel | -11 -10 -10 -9 -8 ------- Run | Yrd Mat Min Mat Mat Robot Analysis Total . | . . . . . Derelict Logs Recovered . | . . . . . Drone Launches . | . . . . . Drone Recoveries . | . . . . . Exploration | -11 -10 -10 -9 -8 ------------- Run | Yrd Mat Min Mat Mat Turns Passed 1640 | 89 76 24 898 553 Spaces Moved 927 | 64 56 18 513 276 Core 3 | 1 . . 2 . Treads 15 | . . . 15 . Legs . | . . . . . Wheels 909 | 63 56 18 496 276 Hover . | . . . . . Flight . | . . . . . Fastest Speed 50 | 50 80 140 80 80 Average Speed 100 | 79 132 140 97 102 Slowest Speed 650 | 80 140 140 650 140 Overloaded Moves . | . . . . . Propulsion Burnouts . | . . . . . Robots Hopped . | . . . . . Cave-ins Triggered . | . . . . . Exploration Rate (%) 20 | 5 15 11 41 29 Regions Visited 4 Branch Regions 1 Pre-discovered Areas . | . . . . . Known Exits Taken 1 | . . . 1 . Unknown Exits Taken 3 | 1 1 1 . . Scrap Searched . | . . . . . Spaces Dug . | . . . . . Terrain Destroyed 3 | . . . 3 . Melee . | . . . . . Projectile . | . . . . . AOE 3 | . . . 3 . Terrain Rammed . | . . . . . Walls Destroyed . | . . . . . Machines Disabled . | . . . . . Actions | -11 -10 -10 -9 -8 --------- Run | Yrd Mat Min Mat Mat Total 1310 | 83 58 17 719 433 Wait 131 | . . . 57 74 Move 923 | 63 55 17 512 276 Hop . | . . . . . Pick Up 35 | 5 1 . 18 11 Fast Attach 21 | 6 1 . 11 3 Attach 19 | . . . 10 9 Detach 1 | . . . 1 . Swap 6 | . . . 5 1 Drop 13 | . 1 . 5 7 Fire 161 | 9 . . 100 52 Melee . | . . . . . Ram . | . . . . . Kick . | . . . . . Crush . | . . . . . Escape Stasis . | . . . . . Rewire . | . . . . . Trap . | . . . . . Miscellaneous . | . . . . . Route ------- -11/Scrapyard -10/Materials -10/Mines -9/Materials (discovered 3 exits: *Mat x3) -8/Materials History --------- Turn | Location | Event 28 | -11/Scrapyard | Discovered new exit (range 15) 90 | -11/Scrapyard | Entered Materials 116 | -10/Materials | Discovered new exit (range 16) 166 | -10/Materials | Entered Mines 182 | -10/Mines | Discovered new exit (range 6) 190 | -10/Mines | Entered Materials 190 | -9/Materials | Evolved 2 slots: Propulsion x1, Utility x1 314 | -9/Materials | Build established: Mutant 377 | -9/Materials | Lost 3 parts (3n) 486 | -9/Materials | Core integrity fell below 50% 505 | -9/Materials | Identified exit to Materials 727 | -9/Materials | Lost 3 parts (2n1u) 1055 | -9/Materials | Build established: Scavenger-Mutant 1088 | -9/Materials | Entered another Materials area 1088 | -8/Materials | Evolved 2 slots: Propulsion x1, Weapon x1 1186 | -8/Materials | Garrison activated, responded to threat 1226 | -8/Materials | Lost 3 parts (3n) 1437 | -8/Materials | Lost 3 parts (1n1u1w) 1575 | -8/Materials | Lost 3 parts (1p1n1w) 1641 | -8/Materials | Self-destructed Last Messages --------------- 01603_ R-06 Scavenger collects Sml. Storage Unit. 01608_ System corrupted: Energy discharge (-29). 01618_ Acquired Reactive Plating. 01620_ K-01 Serf collects debris. 01623_ G1FPZALXARMPV0/H 01628_ O-16 Technician: "IFF HANDSHAKE FAILED. SECURING TERMINAL." 01628_ O-16 Technician uses terminal to summon reinforcements. 01628_ ALERT: Hostiles spotted, dispatching reinforcements to Terminal M011. 01628_ O-16 Technician locks terminal. 01629_ K-01 Serf destroyed. 01632_ Destroyed Datajack. 01639_ Overheating: Energy bleed (-31). 01640_ Overheating: Energy bleed (-41). 01640_ Penetrated by Slug. 01640_ Wheel destroyed. Map ----- +----------------------------------------------------+ | ?????????????????????????????????????????????????? | | ?????????????????????????????????????????????????? | | ?????????????????????????????????????????????????? | | ?????????????????????????????????????????????????? | | ?????????????????????????????????????????????????? | | ?????????????????????????????????????????????????? | | ?????????????????????????????????????????????????? | | ?????????????????????????????????????????????????? | | ?????????????????????????????????????????????????? | | ?????????????????????????????????????????????????? | | ????????????????????????? ?????????????????????? | | ????????????????????????? ????????????????????? | | ????????????????????????? #????????????????????? | | ????????????????????????# #????????????????????? | | ????????????????????????# g #????????????????????? | | ????????????????????????# g #????????????????????? | | ????????????????????????# T????????????????????? | | ??????????????? ???????# #????????????????????? | | ???????????????""???????# #????????????????????? | | ????????????# """???????# #????????????????????? | | ????????????# """???????# #????????????????????? | | ????????????# """ ??????# #????????????????????? | | ????????????? """ ??????# #????????????????????? | | ??????????????? ??????# #????????????????????? | | ??????????????###/###???# #????????????????????? | | ???????# #### #####@ ############### ??? | | ???????# !% a ?? | | ???????# ! !! % #??? | | ???????# *%| h #??? | | ???????######## ###+########+##########??????? | | ??????????????## ##??????# #?????????? | | ???????????????# #???????# "" #?????????? | | ???????????????# #???????# """ T" #?????????? | | ???????????????# #???????# """ ! "" #?????????? | | ???????????????# #???????# """ #?????????? | | ???????????????# #???????# """ #?????????? | | ???????????????# #???????#!% ! ! #?????????? | | ???????????????# ##########+############# ?????? | | ???????????????# = ????? | | ???????????????# ????? | | ???????????????# ????? | | ???????????????# ##################+### ?????? | | ???????????????# # #?????????????????????? | | ??????? ??????## # #?????????????????????? | | ????? ###### #* #?????????????????????? | | ???? #%! #?????????????????????? | | ??? + #?????????????????????? | | ???? [[ #%[ #?????????????????????? | | ????+###### [ #* #############?????????? | | ??????????# ## % # ! #?????????? | +----------------------------------------------------+ Best States ------------- Heat Dissipation 45 Energy Generation 14 Energy Capacity 280 Matter Stores 300 Matter Capacity 300 Sight Range 16 Terrain Scan Density 10 Armor Coverage 225 Evasion (%) 44 Recoil Reduction 2 Offensive Hacking 10 Item Schematics ----------------- None Robot Schematics ------------------ None Fabricated ------------ Nothing Alien Tech Used ----------------- None Achievements -------------- None Challenges ------------ None Game ------ Seed ActiveAntimissileScythe Manual? 0 Play Time 00:17:58 Cumulative 22.2 hours Start 2024.04.26 @ 21:45:36 End 2024.04.26 @ 22:01:18 Sessions 1 Manual Loads 0 Difficulty Rogue Special Mode None Game No. 28 Rogue 28 Adventurer 0 Explorer 0 Win Type - Total 0 Types 0/0/0/0/0/0/0/0/0 Lore% 17 Gallery% 29 Achievement% 21 Wizard Run 0 Options --------- Layout 1 ASCII 0 Keyboard 0 Movement Mouse Keybinds 0 Fullscreen 1 Font 24/Smallcaps Map View 50x35 Zoom Use 0% Tactical HUD 1 Map Filters NONE Filters NONE Steam 1 RUN: deeb985e-4274-41d7-8383-543928cf5787